fUSD/lending_fUSD_20250103
["ID","MTS","AMOUNT","RATE_DAILY","PERIOD"]
[347523127,1735902633280,-500.0,8.987e-05,2]
[347523128,1735902633290,-3843.04,8.987e-05,2]
[347523129,1735902633300,-2038.7,8.987e-05,2]
[347523130,1735902633309,-711.8,8.987e-05,2]
[347523131,1735902633319,-1723.33,8.987e-05,2]
[347523132,1735902633328,-500.0,8.987e-05,2]
[347523133,1735902633337,-2049.99,8.987e-05,2]
[347523134,1735902633346,-1283.37,8.987e-05,2]
[347523135,1735902633356,-1889.75,8.987e-05,2]
[347523136,1735902633365,-4196.83,8.987e-05,2]
[347523137,1735902633375,-1611.15,8.987e-05,2]
[347523138,1735902633384,-8759.0,8.988e-05,2]
[347523139,1735902633393,-5202.01,8.988e-05,2]
[347523140,1735902633403,-3005.91,8.988e-05,2]
[347523141,1735902633412,-10688.99,8.988e-05,2]
[347523142,1735902633422,-5366.9,8.988e-05,2]
[347523143,1735902633431,-2508.26,8.988e-05,2]
[347523144,1735902633441,-1550.52,8.988e-05,2]
[347523145,1735902633451,-291.11808226,8.988e-05,2]
[347523146,1735902633460,-1210.49,8.988e-05,2]
[347523147,1735902633470,-7953.32,8.988e-05,2]
[347523148,1735902633480,-2998.58,8.988e-05,2]
[347523149,1735902633489,-5673.1,8.988e-05,2]
[347523150,1735902633499,-4082.72,8.988e-05,2]
[347523151,1735902633509,-500.0,8.988e-05,2]
[347523152,1735902633518,-500.0,8.988e-05,2]
[347523153,1735902633528,-547.59,8.988e-05,2]
[347523154,1735902633538,-500.0,8.988e-05,2]
[347523155,1735902633548,-500.0,8.988e-05,2]
[347523156,1735902633559,-500.0,8.988e-05,2]
[347523157,1735902633569,-931.87,8.988e-05,2]
[347523158,1735902633579,-450.31055891,8.988e-05,2]
[347523159,1735902633589,-808.0,8.988e-05,2]
[347523160,1735902633598,-2546.54,8.988e-05,2]
[347523161,1735902633608,-500.0,8.988e-05,2]
[347523162,1735902633619,-608.6,8.988e-05,2]
[347523163,1735902633631,-500.0,8.988e-05,2]
[347523164,1735902633641,-500.0,8.988e-05,2]
[347523165,1735902633650,-1284.83,8.988e-05,2]
[347523166,1735902633659,-603.28,8.988e-05,2]
[347523167,1735902633669,-766.46,8.988e-05,2]
[347523168,1735902633678,-522.03,8.988e-05,2]
[347523169,1735902633688,-500.0,8.988e-05,2]
[347523170,1735902633698,-500.0,8.988e-05,2]
[347523171,1735902633708,-500.0,8.988e-05,2]
[347523172,1735902633718,-1958.84,8.988e-05,2]
[347523173,1735902633728,-500.0,8.988e-05,2]
[347523174,1735902633738,-584.3,8.988e-05,2]
[347523175,1735902633748,-959.19,8.988e-05,2]
[347523176,1735902633759,-500.0,8.988e-05,2]
[347523177,1735902633769,-500.0,8.988e-05,2]
[347523178,1735902633779,-1575.27,8.988e-05,2]
[347523179,1735902633788,-1617.25,8.988e-05,2]
[347523180,1735902633798,-500.0,8.988e-05,2]
[347523181,1735902633807,-500.0,8.988e-05,2]
[347523182,1735902633817,-500.0,8.988e-05,2]
[347523183,1735902633827,-505.53,8.988e-05,2]
[347523184,1735902633837,-500.0,8.988e-05,2]
[347523185,1735902633847,-1374.67,8.988e-05,2]
[347523186,1735902633856,-500.0,8.988e-05,2]
[347523187,1735902633866,-1441.07,8.988e-05,2]
[347523188,1735902633876,-500.0,8.988e-05,2]
[347523189,1735902633885,-500.0,8.988e-05,2]
[347523190,1735902633895,-1366.4,8.988e-05,2]
[347523191,1735902633904,-711.39,8.988e-05,2]
[347523192,1735902633914,-500.0,8.988e-05,2]
[347523193,1735902633923,-601.19,8.988e-05,2]
[347523194,1735902633933,-927.29,8.988e-05,2]
[347523195,1735902633942,-1861.34,8.988e-05,2]
[347523196,1735902633952,-917.25,8.988e-05,2]
[347523197,1735902633962,-1140.9,8.988e-05,2]
[347523198,1735902633971,-1317.79,8.988e-05,2]
[347523199,1735902633981,-500.0,8.988e-05,2]
[347523200,1735902633990,-649.87,8.988e-05,2]
[347523201,1735902634000,-500.0,8.988e-05,2]
[347523202,1735902634009,-500.0,8.988e-05,2]
[347523203,1735902634019,-840.31,8.988e-05,2]
[347523204,1735902634028,-500.0,8.988e-05,2]
[347523205,1735902634038,-500.0,8.988e-05,2]
[347523206,1735902634047,-500.0,8.988e-05,2]
[347523207,1735902634057,-500.0,8.988e-05,2]
[347523208,1735902634066,-2447.05,8.988e-05,2]
[347523209,1735902634076,-500.0,8.988e-05,2]
[347523210,1735902634086,-500.0,8.988e-05,2]
[347523211,1735902634096,-500.0,8.988e-05,2]
[347523212,1735902634106,-736.79,8.988e-05,2]
[347523213,1735902634115,-500.0,8.988e-05,2]
[347523214,1735902634126,-1371.4,8.988e-05,2]
[347523215,1735902634136,-1056.27,8.988e-05,2]
[347523216,1735902634145,-645.04,8.988e-05,2]
[347523217,1735902634155,-500.0,8.988e-05,2]
[347523218,1735902634165,-861.18,8.988e-05,2]
[347523219,1735902634174,-1110.15,8.988e-05,2]
[347523220,1735902634184,-500.0,8.988e-05,2]
[347523221,1735902634194,-575.82,8.988e-05,2]
[347523222,1735902634203,-500.0,8.988e-05,2]
[347523223,1735902634215,-1639.22,8.988e-05,2]
[347523224,1735902634227,-500.0,8.988e-05,2]
[347523225,1735902634237,-500.0,8.988e-05,2]
[347523226,1735902634247,-500.0,8.988e-05,2]
[347523227,1735902634257,-500.0,8.988e-05,2]
[347523228,1735902634267,-3609.39,8.988e-05,2]
[347523229,1735902634277,-1632.21,8.988e-05,2]
[347523230,1735902634286,-1283.88,8.988e-05,2]
[347523231,1735902634296,-1628.84,8.988e-05,2]
[347523232,1735902634306,-500.0,8.988e-05,2]
[347523233,1735902634316,-500.0,8.988e-05,2]
[347523234,1735902634326,-500.0,8.988e-05,2]
[347523235,1735902634335,-595.91,8.988e-05,2]
[347523236,1735902634344,-1002.73,8.988e-05,2]
[347523237,1735902634354,-500.0,8.988e-05,2]
[347523238,1735902634363,-999.47,8.988e-05,2]
[347523239,1735902634373,-500.0,8.988e-05,2]
[347523240,1735902634382,-500.0,8.988e-05,2]
[347523241,1735902634391,-3204.96,8.988e-05,2]
[347523242,1735902634400,-1628.8,8.988e-05,2]
[347523243,1735902634410,-500.0,8.988e-05,2]
[347523244,1735902634420,-500.0,8.988e-05,2]
[347523245,1735902634429,-500.0,8.988e-05,2]
[347523246,1735902634438,-3397.5,8.988e-05,2]
[347523247,1735902634447,-1475.29,8.988e-05,2]
[347523248,1735902634457,-500.0,8.988e-05,2]
[347523249,1735902634467,-500.0,8.988e-05,2]
[347523250,1735902634476,-500.0,8.988e-05,2]
[347523251,1735902634486,-1426.24,8.988e-05,2]
[347523252,1735902634495,-500.0,8.988e-05,2]
[347523253,1735902634504,-1490.93,8.988e-05,2]
[347523254,1735902634513,-500.0,8.988e-05,2]
[347523255,1735902634522,-500.0,8.988e-05,2]
[347523256,1735902634531,-4452.17,8.988e-05,2]
[347523257,1735902634542,-763.51,8.988e-05,2]
[347523258,1735902634552,-1571.75,8.988e-05,2]
[347523259,1735902634563,-500.0,8.988e-05,2]
[347523260,1735902634573,-500.0,8.988e-05,2]
[347523261,1735902634582,-538.84,8.988e-05,2]
[347523262,1735902634592,-2006.33,8.988e-05,2]
[347523263,1735902634601,-678.37,8.988e-05,2]
[347523264,1735902634611,-982.25,8.988e-05,2]
[347523265,1735902634620,-500.0,8.988e-05,2]
[347523266,1735902634630,-500.0,8.988e-05,2]
[347523267,1735902634639,-500.0,8.988e-05,2]
[347523268,1735902634649,-500.0,8.988e-05,2]
[347523269,1735902634658,-1115.39,8.988e-05,2]
[347523270,1735902634667,-1622.45,8.988e-05,2]
[347523271,1735902634677,-3142.09,8.988e-05,2]
[347523272,1735902634686,-500.0,8.988e-05,2]
[347523273,1735902634695,-1053.94,8.988e-05,2]
[347523274,1735902634704,-569.09,8.988e-05,2]
[347523275,1735902634713,-2679.64,8.988e-05,2]
[347523276,1735902634722,-581.07,8.988e-05,2]
[347523277,1735902634731,-534.84,8.988e-05,2]
[347523278,1735902634740,-500.0,8.988e-05,2]
[347523279,1735902634749,-500.0,8.988e-05,2]
[347523280,1735902634758,-381.10321485,8.988e-05,2]
[347523281,1735902634767,-1329.46,8.988e-05,2]
[347523282,1735902634776,-500.0,8.988e-05,2]
[347523283,1735902634785,-827.27,8.988e-05,2]
[347523284,1735902634795,-500.0,8.988e-05,2]
[347523285,1735902634804,-500.0,8.988e-05,2]
[347523286,1735902634814,-566.97,8.988e-05,2]
[347523287,1735902634823,-1150.04,8.988e-05,2]
[347523288,1735902634832,-785.77,8.988e-05,2]
[347523289,1735902634841,-381.14519113,8.988e-05,2]
[347523290,1735902634850,-859.56,8.988e-05,2]
[347523291,1735902634860,-1965.34,8.988e-05,2]
[347523292,1735902634869,-500.0,8.988e-05,2]
[347523293,1735902634878,-629.1,8.988e-05,2]
[347523294,1735902634888,-1468.52,8.988e-05,2]
[347523295,1735902634897,-622.00858151,8.988e-05,2]
[347523296,1735902634906,-500.0,8.988e-05,2]
[347523297,1735902634915,-1802.18,8.988e-05,2]
[347523298,1735902634925,-6131.12,8.988e-05,2]
[347523299,1735902634934,-500.0,8.988e-05,2]
[347523300,1735902634943,-500.0,8.988e-05,2]
[347523301,1735902634953,-500.0,8.988e-05,2]
[347523302,1735902634962,-565.87,8.988e-05,2]
[347523303,1735902634972,-579.65,8.988e-05,2]
[347523304,1735902634981,-637.85,8.988e-05,2]
[347523305,1735902634990,-563.79,8.988e-05,2]
[347523306,1735902634999,-742.22,8.988e-05,2]
[347523307,1735902635008,-500.0,8.988e-05,2]
[347523308,1735902635018,-500.0,8.988e-05,2]
[347523309,1735902635027,-1191.18,8.988e-05,2]
[347523310,1735902635036,-500.0,8.988e-05,2]
[347523311,1735902635045,-1068.37,8.988e-05,2]
[347523312,1735902635055,-704.37,8.988e-05,2]
[347523313,1735902635064,-500.0,8.988e-05,2]
[347523314,1735902635074,-542.94140953,8.988e-05,2]
[347523315,1735902635083,-500.0,8.988e-05,2]
[347523316,1735902635093,-4407.09,8.988e-05,2]
[347523317,1735902635102,-695.54,8.988e-05,2]
[347523318,1735902635112,-925.07,8.988e-05,2]
[347523319,1735902635121,-500.0,8.988e-05,2]
[347523320,1735902635130,-500.0,8.988e-05,2]
[347523321,1735902635140,-500.0,8.988e-05,2]
[347523322,1735902635149,-500.0,8.988e-05,2]
[347523323,1735902635159,-500.0,8.988e-05,2]
[347523324,1735902635168,-1294.14,8.988e-05,2]
[347523325,1735902635177,-1967.31,8.988e-05,2]
[347523326,1735902635186,-543.65,8.988e-05,2]
[347523327,1735902635196,-1334.14,8.988e-05,2]
[347523328,1735902635205,-978.4,8.988e-05,2]
[347523329,1735902635217,-2384.66,8.988e-05,2]
[347523330,1735902635226,-813.61,8.988e-05,2]
[347523331,1735902635235,-10393.43,8.988e-05,2]
[347523332,1735902635245,-500.0,8.988e-05,2]
[347523333,1735902635254,-925.31,8.988e-05,2]
[347523334,1735902635264,-1165.77,8.988e-05,2]
[347523335,1735902635273,-500.0,8.988e-05,2]
[347523336,1735902635282,-2010.38,8.988e-05,2]
[347523337,1735902635292,-566.46,8.988e-05,2]
[347523338,1735902635302,-706.81,8.988e-05,2]
[347523339,1735902635312,-1028.7,8.988e-05,2]
[347523340,1735902635322,-560.18,8.988e-05,2]
[347523341,1735902635331,-1129.89,8.988e-05,2]
[347523342,1735902635340,-642.0,8.988e-05,2]
[347523343,1735902635350,-4639.05,8.988e-05,2]
[347523344,1735902635359,-1413.44,8.988e-05,2]
[347523345,1735902635368,-6125.39,8.988e-05,2]
[347523346,1735902635378,-2172.59,8.988e-05,2]
[347523347,1735902635388,-1137.15,8.988e-05,2]
[347523348,1735902635398,-579.43,8.988e-05,2]
[347523349,1735902635407,-500.0,8.988e-05,2]
[347523350,1735902635416,-547.21,8.988e-05,2]
[347523351,1735902635425,-1284.01,8.988e-05,2]
[347523352,1735902635434,-754.87,8.988e-05,2]
[347523353,1735902635444,-500.0,8.988e-05,2]
[347523354,1735902635453,-500.0,8.988e-05,2]
[347523355,1735902635463,-861.53,8.988e-05,2]
[347523356,1735902635472,-736.86,8.988e-05,2]
[347523357,1735902635481,-870.4,8.988e-05,2]
[347523358,1735902635491,-500.0,8.988e-05,2]
[347523359,1735902635500,-500.0,8.988e-05,2]
[347523360,1735902635510,-500.0,8.988e-05,2]
[347523361,1735902635519,-5651.97,8.988e-05,2]
[347523362,1735902635528,-500.0,8.988e-05,2]
[347523363,1735902635537,-697.36,8.988e-05,2]
[347523364,1735902635547,-2230.06,8.988e-05,2]
[347523365,1735902635556,-1106.35,8.988e-05,2]
[347523366,1735902635565,-500.0,8.988e-05,2]
[347523367,1735902635575,-500.0,8.988e-05,2]
[347523368,1735902635585,-1922.56,8.988e-05,2]
[347523369,1735902635595,-500.0,8.988e-05,2]
[347523370,1735902635604,-508.72,8.988e-05,2]
[347523371,1735902635613,-633.28752034,8.988e-05,2]
[347523372,1735902635623,-500.0,8.988e-05,2]
[347523373,1735902635632,-1373.84,8.988e-05,2]
[347523374,1735902635642,-572.41,8.988e-05,2]
[347523375,1735902635652,-1943.57,8.988e-05,2]
[347523376,1735902635661,-500.0,8.988e-05,2]
[347523377,1735902635670,-3644.16,8.988e-05,2]
[347523378,1735902635679,-759.44,8.988e-05,2]
[347523379,1735902635689,-500.0,8.988e-05,2]
[347523380,1735902635698,-976.8,8.988e-05,2]
[347523381,1735902635708,-1982.64,8.988e-05,2]
[347523382,1735902635717,-500.0,8.988e-05,2]
[347523383,1735902635726,-500.0,8.988e-05,2]
[347523384,1735902635735,-500.0,8.988e-05,2]
[347523385,1735902635745,-988.38,8.988e-05,2]
[347523386,1735902635754,-1764.29,8.988e-05,2]
[347523387,1735902636005,-500.0,8.988e-05,2]
[347523388,1735902636014,-547.43,8.988e-05,2]
[347523389,1735902636024,-509.26,8.988e-05,2]
[347523390,1735902636033,-1307.49,8.988e-05,2]
[347523391,1735902636043,-655.7,8.988e-05,2]
[347523392,1735902636053,-1134.31,8.988e-05,2]
[347523393,1735902636062,-4027.45,8.988e-05,2]
[347523394,1735902636072,-1354.34,8.988e-05,2]
[347523395,1735902636082,-579.57,8.988e-05,2]
[347523396,1735902636091,-500.0,8.988e-05,2]
[347523397,1735902636101,-881.54,8.988e-05,2]
[347523398,1735902636110,-500.0,8.988e-05,2]
[347523399,1735902636121,-1650.23,8.988e-05,2]
[347523400,1735902636131,-1348.51,8.988e-05,2]
[347523401,1735902636141,-500.0,8.988e-05,2]
[347523402,1735902636150,-814.05,8.988e-05,2]
[347523403,1735902636160,-795.45,8.988e-05,2]
[347523404,1735902636169,-1068.9,8.988e-05,2]
[347523405,1735902636178,-500.0,8.988e-05,2]
[347523406,1735902636188,-1090.05,8.988e-05,2]
[347523407,1735902636197,-630.72,8.988e-05,2]
[347523408,1735902636207,-650.68,8.988e-05,2]
[347523409,1735902636218,-500.0,8.988e-05,2]
[347523410,1735902636227,-678.63,8.988e-05,2]
[347523411,1735902636237,-510.32728826,8.988e-05,2]
[347523412,1735902636246,-1052.17,8.988e-05,2]
[347523413,1735902636256,-1021.38,8.988e-05,2]
[347523414,1735902636266,-500.0,8.988e-05,2]
[347523415,1735902636275,-500.0,8.988e-05,2]
[347523416,1735902636285,-1124.25,8.988e-05,2]
[347523417,1735902636295,-1187.62,8.988e-05,2]
[347523418,1735902636305,-646.46,8.988e-05,2]
[347523419,1735902636315,-11932.89,8.988e-05,2]
[347523420,1735902636324,-1042.65,8.988e-05,2]
[347523421,1735902636334,-500.0,8.988e-05,2]
[347523422,1735902636344,-500.0,8.988e-05,2]
[347523423,1735902636354,-500.0,8.988e-05,2]
[347523424,1735902636363,-500.0,8.988e-05,2]
[347523425,1735902636374,-1015.73,8.988e-05,2]
[347523426,1735902636385,-706.43,8.988e-05,2]
[347523427,1735902636394,-615.16,8.988e-05,2]
[347523428,1735902636403,-163.54903608,8.988e-05,2]
[347523429,1735902636412,-500.0,8.988e-05,2]
[347523430,1735902636422,-1156.62,8.988e-05,2]
[347523431,1735902636431,-1822.94,8.988e-05,2]
[347523432,1735902636441,-1380.09,8.988e-05,2]
[347523433,1735902636450,-530.29,8.988e-05,2]
[347523434,1735902636459,-500.0,8.988e-05,2]
[347523435,1735902636468,-500.0,8.988e-05,2]
[347523436,1735902636477,-672.85,8.988e-05,2]
[347523437,1735902636488,-1517.94,8.988e-05,2]
[347523438,1735902636498,-500.0,8.988e-05,2]
[347523439,1735902636507,-1524.87,8.988e-05,2]
[347523440,1735902636517,-1411.73,8.988e-05,2]
[347523441,1735902636527,-2077.46,8.988e-05,2]
[347523442,1735902636536,-517.51,8.988e-05,2]
[347523443,1735902636545,-500.0,8.988e-05,2]
[347523444,1735902636555,-804.03,8.988e-05,2]
[347523445,1735902636565,-1145.78,8.988e-05,2]
[347523446,1735902636574,-4614.0,8.988e-05,2]
[347523447,1735902636584,-500.0,8.988e-05,2]
[347523448,1735902636593,-608.64,8.988e-05,2]
[347523449,1735902636603,-500.0,8.988e-05,2]
[347523450,1735902636612,-692.0,8.988e-05,2]
[347523451,1735902636623,-500.0,8.988e-05,2]
[347523452,1735902636633,-500.0,8.988e-05,2]
[347523453,1735902636642,-500.0,8.988e-05,2]
[347523454,1735902636652,-945.48,8.988e-05,2]
[347523455,1735902636661,-500.0,8.988e-05,2]
[347523456,1735902636671,-500.0,8.988e-05,2]
[347523457,1735902636680,-1149.19,8.988e-05,2]
[347523458,1735902636689,-1349.95,8.988e-05,2]
[347523459,1735902636699,-639.05,8.988e-05,2]
[347523460,1735902636707,-1900.46,8.988e-05,2]
[347523461,1735902636717,-500.0,8.988e-05,2]
[347523462,1735902636726,-580.1,8.988e-05,2]
[347523463,1735902636735,-500.0,8.988e-05,2]
[347523464,1735902636745,-1510.31,8.988e-05,2]
[347523465,1735902636755,-501.68291369,8.988e-05,2]
[347523466,1735902636764,-500.0,8.988e-05,2]
[347523467,1735902636774,-500.0,8.988e-05,2]
[347523468,1735902636783,-1796.34,8.988e-05,2]
[347523469,1735902636795,-1226.74,8.988e-05,2]
[347523470,1735902636805,-500.0,8.988e-05,2]
[347523471,1735902636814,-10541.96,8.988e-05,2]
[347523472,1735902636824,-1675.89,8.988e-05,2]
[347523473,1735902636834,-2216.04,8.988e-05,2]
[347523474,1735902636843,-500.0,8.988e-05,2]
[347523475,1735902636853,-1760.03,8.988e-05,2]
[347523476,1735902636862,-5481.26,8.988e-05,2]
[347523477,1735902636872,-521.99,8.988e-05,2]
[347523478,1735902636882,-2059.96,8.988e-05,2]
[347523479,1735902636891,-1619.57,8.988e-05,2]
[347523480,1735902636900,-1460.72,8.988e-05,2]
[347523481,1735902636910,-851.46,8.988e-05,2]
[347523482,1735902636919,-617.78,8.988e-05,2]
[347523483,1735902636929,-500.0,8.988e-05,2]
[347523484,1735902636938,-500.0,8.988e-05,2]
[347523485,1735902636947,-500.0,8.988e-05,2]
[347523486,1735902636957,-500.0,8.988e-05,2]
[347523487,1735902636966,-500.0,8.988e-05,2]
[347523488,1735902636975,-2332.77,8.988e-05,2]
[347523489,1735902636984,-966.34,8.988e-05,2]
[347523490,1735902636994,-500.0,8.988e-05,2]
[347523491,1735902637003,-638.02,8.988e-05,2]
[347523492,1735902637012,-660.3,8.988e-05,2]
[347523493,1735902637021,-1511.85,8.988e-05,2]
[347523494,1735902637031,-500.0,8.988e-05,2]
[347523495,1735902637040,-903.8,8.988e-05,2]
[347523496,1735902637050,-676.41,8.988e-05,2]
[347523497,1735902637059,-1076.62,8.988e-05,2]
[347523498,1735902637068,-500.0,8.988e-05,2]
[347523499,1735902637077,-1223.3,8.988e-05,2]
[347523500,1735902637087,-500.0,8.988e-05,2]
[347523501,1735902637097,-500.0,8.988e-05,2]
[347523502,1735902637107,-12166.17,8.988e-05,2]
[347523503,1735902637116,-500.0,8.988e-05,2]
[347523504,1735902637131,-1151.64,8.988e-05,2]
[347523505,1735902637141,-500.0,8.988e-05,2]
[347523506,1735902637150,-916.62,8.988e-05,2]
[347523507,1735902637160,-1661.08,8.988e-05,2]
[347523508,1735902637169,-727.62,8.988e-05,2]
[347523509,1735902637179,-3374.63,8.988e-05,2]
[347523510,1735902637188,-875.99,8.988e-05,2]
[347523511,1735902637198,-1742.66,8.988e-05,2]
[347523512,1735902637207,-500.0,8.988e-05,2]
[347523513,1735902637220,-2399.82,8.988e-05,2]
[347523514,1735902637229,-780.56,8.989e-05,2]
[347523515,1735902637239,-653.01,8.989e-05,2]
[347523516,1735902637248,-559.07,8.989e-05,2]
[347523517,1735902637258,-500.0,8.989e-05,2]
[347523518,1735902637267,-1252.01,8.989e-05,2]
[347523519,1735902637277,-500.0,8.989e-05,2]
[347523520,1735902637286,-1227.09,8.989e-05,2]
[347523521,1735902637296,-500.0,8.989e-05,2]
[347523522,1735902637306,-1323.27,8.989e-05,2]
[347523523,1735902637315,-523.87,8.989e-05,2]
[347523524,1735902637324,-1391.71,8.989e-05,2]
[347523525,1735902637335,-500.0,8.989e-05,2]
[347523526,1735902637344,-500.0,8.989e-05,2]
[347523527,1735902637353,-500.0,8.989e-05,2]
[347523528,1735902637362,-500.0,8.989e-05,2]
[347523529,1735902637372,-500.0,8.989e-05,2]
[347523530,1735902637381,-1227.17,8.989e-05,2]
[347523531,1735902637391,-500.0,8.989e-05,2]
[347523532,1735902637400,-500.0,8.989e-05,2]
[347523533,1735902637410,-915.6,8.989e-05,2]
[347523534,1735902637419,-500.0,8.989e-05,2]
[347523535,1735902637428,-576.57,8.989e-05,2]
[347523536,1735902637437,-1054.89,8.989e-05,2]
[347523537,1735902637447,-500.0,8.989e-05,2]
[347523538,1735902637456,-500.0,8.989e-05,2]
[347523539,1735902637465,-1068.53,8.989e-05,2]
[347523540,1735902637474,-500.0,8.989e-05,2]
[347523541,1735902637484,-500.0,8.989e-05,2]
[347523542,1735902637493,-500.0,8.989e-05,2]
[347523543,1735902637503,-709.73,8.989e-05,2]
[347523544,1735902637512,-500.0,8.989e-05,2]
[347523545,1735902637522,-599.87,8.989e-05,2]
[347523546,1735902637531,-500.0,8.989e-05,2]
[347523547,1735902637541,-628.6,8.989e-05,2]
[347523548,1735902637549,-500.0,8.989e-05,2]
[347523549,1735902637558,-1144.43,8.989e-05,2]
[347523550,1735902637568,-500.0,8.989e-05,2]
[347523551,1735902637578,-521.88,8.989e-05,2]
[347523552,1735902637588,-674.5,8.989e-05,2]
[347523553,1735902637597,-500.0,8.989e-05,2]
[347523554,1735902637607,-500.0,8.989e-05,2]
[347523555,1735902637617,-500.0,8.989e-05,2]
[347523556,1735902637629,-673.1,8.989e-05,2]
[347523557,1735902637639,-500.0,8.989e-05,2]
[347523558,1735902637649,-582.62,8.989e-05,2]
[347523559,1735902637659,-500.0,8.989e-05,2]
[347523560,1735902637668,-801.02,8.989e-05,2]
[347523561,1735902637677,-884.42,8.989e-05,2]
[347523562,1735902637686,-911.07,8.989e-05,2]
[347523563,1735902637696,-500.0,8.989e-05,2]
[347523564,1735902637705,-500.0,8.989e-05,2]
[347523565,1735902637714,-500.0,8.989e-05,2]
[347523566,1735902637723,-500.0,8.989e-05,2]
[347523567,1735902637733,-500.0,8.989e-05,2]
[347523568,1735902637743,-500.0,8.989e-05,2]
[347523569,1735902637752,-500.0,8.989e-05,2]
[347523570,1735902637762,-1053.44,8.989e-05,2]
[347523571,1735902637771,-1233.55,8.989e-05,2]
[347523572,1735902637780,-500.0,8.989e-05,2]
[347523573,1735902637790,-500.0,8.989e-05,2]
[347523574,1735902637799,-500.0,8.989e-05,2]
[347523575,1735902637808,-500.0,8.989e-05,2]
[347523576,1735902637818,-656.78,8.989e-05,2]
[347523577,1735902637827,-764.36,8.989e-05,2]
[347523578,1735902637836,-500.0,8.989e-05,2]
[347523579,1735902637846,-500.0,8.989e-05,2]
[347523580,1735902637856,-500.0,8.989e-05,2]
[347523581,1735902637865,-500.0,8.989e-05,2]
[347523582,1735902637876,-500.0,8.989e-05,2]
[347523583,1735902637885,-500.0,8.989e-05,2]
[347523584,1735902637895,-500.0,8.989e-05,2]
[347523585,1735902637905,-500.0,8.989e-05,2]
[347523586,1735902637914,-500.0,8.989e-05,2]
[347523587,1735902637924,-634.89,8.989e-05,2]
[347523588,1735902637933,-500.0,8.989e-05,2]
[347523589,1735902637943,-595.66,8.989e-05,2]
[347523590,1735902637953,-500.0,8.989e-05,2]
[347523591,1735902637962,-500.0,8.989e-05,2]
[347523592,1735902637971,-711.71,8.989e-05,2]
[347523593,1735902637981,-541.47,8.989e-05,2]
[347523594,1735902637990,-693.25,8.989e-05,2]
[347523595,1735902638000,-500.0,8.989e-05,2]
[347523596,1735902638009,-500.0,8.989e-05,2]
[347523597,1735902638019,-500.0,8.989e-05,2]
[347523598,1735902638029,-500.0,8.989e-05,2]
[347523600,1735902638039,-625.45,8.989e-05,2]
[347523601,1735902638048,-500.0,8.989e-05,2]
[347523603,1735902638058,-512.04,8.989e-05,2]
[347523604,1735902638068,-500.0,8.989e-05,2]
[347523605,1735902638078,-500.0,8.989e-05,2]
[347523606,1735902638087,-813.12,8.989e-05,2]
[347523607,1735902638097,-812.9,8.989e-05,2]
[347523608,1735902638107,-500.0,8.989e-05,2]
[347523609,1735902638116,-500.0,8.989e-05,2]
[347523610,1735902638127,-1220.81,8.989e-05,2]
[347523611,1735902638136,-500.0,8.989e-05,2]
[347523612,1735902638145,-500.0,8.989e-05,2]
[347523613,1735902638155,-500.0,8.989e-05,2]
[347523614,1735902638164,-614.7,8.989e-05,2]
[347523615,1735902638173,-500.0,8.989e-05,2]
[347523616,1735902638183,-896.49,8.989e-05,2]
[347523617,1735902638192,-1262.47,8.989e-05,2]
[347523618,1735902638202,-1369.32,8.989e-05,2]
[347523619,1735902638211,-517.28,8.989e-05,2]
[347523620,1735902638225,-500.0,8.989e-05,2]
[347523621,1735902638235,-500.0,8.989e-05,2]
[347523622,1735902638244,-816.56,8.989e-05,2]
[347523623,1735902638255,-830.64,8.989e-05,2]
[347523624,1735902638265,-500.0,8.989e-05,2]
[347523625,1735902638275,-683.14,8.989e-05,2]
[347523626,1735902638285,-1021.8,8.989e-05,2]
[347523627,1735902638295,-500.35,8.989e-05,2]
[347523628,1735902638306,-500.0,8.989e-05,2]